[Event "44th Chess Olympiad Women 2022"]
[Site "Chennai"]
[Date "2022.07.31"]
[Round "3.47"]
[White "Castro, Neusa Aridas De"]
[Black "Vargas, Gabriela"]
[Result "0-1"]
[WhiteElo "1531"]
[BlackElo "2140"]
[Annotator "RC"]
[PlyCount "152"]
[EventDate "2022.??.??"]
[TimeControl "60"]

1. e4 {[%emt 0:00:07]} d5 {[%emt 0:00:26]} 2. exd5 {[%emt 0:00:21]} Nf6 {
[%emt 0:00:24]} 3. d4 {[%emt 0:00:23]} Nxd5 {[%emt 0:00:27]} 4. Nf3 {[%emt 0:
00:00]} Bg4 {[%emt 0:01:33]} 5. Be2 {[%emt 0:00:07]} e6 {[%emt 0:02:19]} 6. O-O
{[%emt 0:02:19]} Be7 {[%emt 0:02:50]} 7. Nbd2 {[%emt 0:01:48]} O-O {[%emt 0:00:
00]} 8. c3 {[%emt 0:00:18]} Nf4 {[%emt 0:03:59]} 9. Bc4 {[%emt 0:02:39]} Nd7 {
[%emt 0:01:43]} 10. Ne4 {[%emt 0:00:33]} Nb6 {[%emt 0:01:51]} 11. Bb3 {[%emt 0:
00:00]} Nfd5 {[%emt 0:12:21]} 12. h3 {[%emt 0:00:37]} Bh5 {[%emt 0:00:37]} 13.
Ng3 {[%emt 0:00:12]} Bg6 {[%emt 0:00:21]} 14. Ne5 {[%emt 0:01:06]} c5 {[%emt 0:
00:00]} 15. Nxg6 {[%emt 0:02:17]} hxg6 {[%emt 0:00:07]} 16. Ne4 {[%emt 0:00:17]
} c4 {[%emt 0:04:38]} 17. Bc2 {[%emt 0:01:11]} Nd7 {[%emt 0:02:53]} 18. Qf3 {
[%emt 0:07:36]} Qc7 {[%emt 0:02:40]} 19. Qe2 {[%emt 0:07:39]} b5 {[%emt 0:00:
00]} 20. Ng5 {[%emt 0:00:39]} Bxg5 {[%emt 0:02:56]} 21. Bxg5 {[%emt 0:00:16]}
Rfe8 {[%emt 0:01:55]} 22. Rfe1 {[%emt 0:04:23]} a5 {[%emt 0:03:59]} 23. a3 {
[%emt 0:01:36]} N7b6 {[%emt 0:00:34]} 24. h4 {[%emt 0:02:37]} f5 {[%emt 0:00:
00]} 25. Qf3 {[%emt 0:02:53]} Qf7 {[%emt 0:01:16]} 26. Re2 {[%emt 0:01:38]} Na4
{[%emt 0:05:52]} 27. Bxa4 {[%emt 0:02:27]} bxa4 {[%emt 0:00:02]} 28. Rae1 {
[%emt 0:00:14]} Rab8 {[%emt 0:01:25]} 29. Qg3 {[%emt 0:01:40]} Rb6 {[%emt 0:00:
00]} 30. Qe5 {[%emt 0:00:17]} Reb8 {[%emt 0:00:54]} 31. Bc1 {[%emt 0:02:08]}
R8b7 {[%emt 0:02:08]} 32. Qg3 {[%emt 0:01:58]} Kh7 {[%emt 0:06:05]} 33. Qf3 {
[%emt 0:03:54]} Kg8 {[%emt 0:03:48]} 34. Re5 {[%emt 0:02:54]} Rd6 {[%emt 0:00:
00]} 35. Qe2 {[%emt 0:00:15]} Rc7 {[%emt 0:01:02]} 36. Rxe6 {[%emt 0:01:19]}
Rxe6 {[%emt 0:00:38]} 37. Qxe6 {[%emt 0:00:08]} Qxe6 {[%emt 0:00:07]} 38. Rxe6
{[%emt 0:00:39]} Kf7 {[%emt 0:00:03]} 39. Ra6 {[%emt 0:00:19]} Rb7 {[%emt 0:00:
00]} 40. Kh2 {[%emt 0:05:17]} Rb5 {[%emt 0:02:30]} 41. Rc6 {[%emt 0:30:18]} Nb6
{[%emt 0:30:09]} 42. Kg3 {[%emt 0:00:37]} g5 {[%emt 0:00:00]} 43. hxg5 {
[%emt 0:00:00]} g6 {[%emt 0:00:00]} 44. Kf3 {[%emt 0:00:00]} Kg7 {[%emt 0:00:
00]} 45. Rc5 {[%emt 0:00:00]} Rxc5 {[%emt 0:00:00]} 46. dxc5 {[%emt 0:00:00]}
Nd7 {[%emt 0:00:00]} 47. Be3 {[%emt 0:00:00]} Ne5+ {[%emt 0:00:00]} 48. Kf4 {
[%emt 0:00:00]} Nd3+ {[%emt 0:00:00]} 49. Kg3 {[%emt 0:00:00]} Kf7 {[%emt 0:00:
00]} 50. Kf3 {[%emt 0:00:00]} Ke6 {[%emt 0:00:00]} 51. Ke2 {[%emt 0:00:00]} Kd5
{[%emt 0:00:00]} 52. f3 {[%emt 0:00:00]} Nxb2 {[%emt 0:00:00]} 53. Bd4 {
[%emt 0:00:00]} Nd3 {[%emt 0:00:00]} 54. g3 {[%emt 0:00:00]} Kc6 {[%emt 0:00:
00]} 55. f4 {[%emt 0:00:00]} Kd5 {[%emt 0:00:00]} 56. Kf3 {[%emt 0:00:00]} Ne1+
{[%emt 0:00:00]} 57. Ke2 {[%emt 0:00:00]} Nc2 {[%emt 0:00:00]} 58. g4 {[%emt 0:
00:00]} fxg4 {[%emt 0:00:00]} 59. f5 {[%emt 0:00:00]} Nxa3 {[%emt 0:00:00]} 60.
fxg6 {[%emt 0:00:00]} Ke6 {[%emt 0:00:00]} 61. Kd2 {[%emt 0:06:34]} g3 {
[%emt 0:00:00]} 62. g7 {[%emt 0:02:38]} Kf7 {[%emt 0:00:00]} 63. g6+ {[%emt 0:
00:00]} Kg8 {[%emt 0:00:04]} 64. Kc1 {[%emt 0:06:23]} Nb5 {[%emt 0:00:26]} 65.
Bg1 {[%emt 0:00:54]} Kxg7 {[%emt 0:01:19]} 66. Kb2 {[%emt 0:00:05]} Kxg6 {
[%emt 0:00:15]} 67. c6 {[%emt 0:00:06]} Kf5 {[%emt 0:00:49]} 68. c7 {[%emt 0:
00:00]} Nxc7 {[%emt 0:00:04]} 69. Ka3 {[%emt 0:00:03]} Nb5+ {[%emt 0:00:22]}
70. Kxa4 {[%emt 0:00:13]} Nxc3+ {[%emt 0:00:02]} 71. Ka3 {[%emt 0:02:19]} Ne2 {
[%emt 0:00:14]} 72. Bb6 {[%emt 0:00:28]} g2 {[%emt 0:00:15]} 73. Bc5 {[%emt 0:
00:00]} g1=Q {[%emt 0:00:27]} 74. Bxg1 {[%emt 0:00:09]} Nxg1 {[%emt 0:00:04]}
75. Ka4 {[%emt 0:00:56]} c3 {[%emt 0:00:23]} 76. Kb3 {[%emt 0:00:11]} Ne2 {
[%emt 0:00:07]} 0-1

[Event "44th Chess Olympiad Women 2022"]
[Site "Chennai"]
[Date "2022.07.31"]
[Round "3.47"]
[White "Mayeregger Gonzalez, Renata"]
[Black "Andre, Chineva Rufino"]
[Result "1-0"]
[WhiteElo "1479"]
[BlackElo "1171"]
[Annotator "NA RC"]
[PlyCount "109"]
[EventDate "2022.??.??"]
[TimeControl "60"]

1. e4 {[%emt 0:00:02]} e5 {[%emt 0:00:14]} 2. Nf3 {[%emt 0:00:13]} Nc6 {
[%emt 0:03:26]} 3. d4 {[%emt 0:00:45]} exd4 {[%emt 0:05:00]} 4. Nxd4 {[%emt 0:
00:00]} Bc5 {[%emt 0:04:05]} 5. Nxc6 {[%emt 0:01:49]} Qf6 {[%emt 0:09:53]} 6.
Qf3 {[%emt 0:02:00]} Qxf3 {[%emt 0:07:11]} 7. gxf3 {[%emt 0:00:33]} dxc6 {
[%emt 0:00:31]} 8. Be3 {[%emt 0:01:09]} Bxe3 {[%emt 0:05:58]} 9. fxe3 {[%emt 0:
00:00]} Nf6 {[%emt 0:04:16]} 10. Nc3 {[%emt 0:03:17]} Be6 {[%emt 0:01:16]} 11.
Bd3 {[%emt 0:04:58]} O-O-O {[%emt 0:02:54]} 12. Rg1 {[%emt 0:02:38]} g6 {
[%emt 0:05:39]} 13. f4 {[%emt 0:08:21]} h5 {[%emt 0:04:41]} 14. O-O-O {[%emt 0:
00:00]} Ng4 {[%emt 0:02:06]} 15. f5 {[%emt 0:08:06]} Bd7 {[%emt 0:03:13]} 16.
h3 {[%emt 0:13:07]} Nf2 {[%emt 0:09:34]} 17. Rdf1 {[%emt 0:00:50]} Nxd3+ {
[%emt 0:00:32]} 18. cxd3 {[%emt 0:01:17]} gxf5 {[%emt 0:00:57]} 19. exf5 {
[%emt 0:00:24]} Rhg8 {[%emt 0:00:32]} 20. e4 {[%emt 0:02:09]} b5 {[%emt 0:00:
00]} 21. Ne2 {[%emt 0:09:46]} c5 {[%emt 0:02:22]} 22. Nf4 {[%emt 0:01:26]} h4 {
[%emt 0:03:54]} 23. Nd5 {[%emt 0:02:14]} Kb7 {[%emt 0:02:22]} 24. Rxg8 {
[%emt 0:02:19]} Rxg8 {[%emt 0:00:04]} 25. Nf6 {[%emt 0:00:52]} Rd8 {[%emt 0:00:
00]} 26. Nxd7 {[%emt 0:00:16]} Rxd7 {[%emt 0:00:14]} 27. Kc2 {[%emt 0:00:12]}
f6 {[%emt 0:00:34]} 28. Rf4 {[%emt 0:00:40]} Rh7 {[%emt 0:00:26]} 29. Rg4 {
[%emt 0:00:00]} Rh5 {[%emt 0:03:22]} 30. Rg6 {[%emt 0:02:15]} Kc8 {[%emt 0:00:
00]} 31. Rxf6 {[%emt 0:00:23]} Rg5 {[%emt 0:00:33]} 32. Rh6 {[%emt 0:01:30]} a5
{[%emt 0:01:33]} 33. Rxh4 {[%emt 0:01:59]} a4 {[%emt 0:02:32]} 34. Rg4 {
[%emt 0:00:26]} Rh5 {[%emt 0:00:17]} 35. h4 {[%emt 0:00:16]} Rh8 {[%emt 0:00:
00]} 36. f6 {[%emt 0:00:23]} Kd7 {[%emt 0:00:27]} 37. Rg7+ {[%emt 0:02:00]} Kd6
{[%emt 0:03:32]} 38. Rg4 {[%emt 0:07:40]} Ke6 {[%emt 0:01:26]} 39. Rf4 {
[%emt 0:03:24]} b4 {[%emt 0:02:26]} 40. f7 {[%emt 0:00:32]} Rf8 {[%emt 0:00:28]
} 41. h5 {[%emt 0:30:17]} Rxf7 {[%emt 0:31:07]} 42. Rxf7 {[%emt 0:00:13]} Kxf7
{[%emt 0:00:07]} 43. e5 {[%emt 0:00:08]} Ke6 {[%emt 0:00:45]} 44. h6 {[%emt 0:
00:00]} Kf7 {[%emt 0:01:08]} 45. e6+ {[%emt 0:00:55]} Kxe6 {[%emt 0:00:15]} 46.
h7 {[%emt 0:00:06]} Kd5 {[%emt 0:00:25]} 47. h8=Q {[%emt 0:00:22]} c6 {[%emt 0:
00:00]} 48. a3 {[%emt 0:00:45]} b3+ {[%emt 0:00:15]} 49. Kc3 {[%emt 0:00:11]}
Kd6 {[%emt 0:00:18]} 50. Kc4 {[%emt 0:00:26]} Kd7 {[%emt 0:00:21]} 51. Qf6 {
[%emt 0:00:38]} Kc7 {[%emt 0:00:56]} 52. Kxc5 {[%emt 0:00:29]} Kd7 {[%emt 0:00:
00]} 53. Qf7+ {[%emt 0:00:19]} Kd8 {[%emt 0:00:47]} 54. Kd6 {[%emt 0:00:26]} c5
{[%emt 0:01:27]} 55. Qg8# {[%emt 0:00:12]} 1-0

[Event "44th Chess Olympiad Women 2022"]
[Site "Chennai"]
[Date "2022.07.31"]
[Round "3.47"]
[White "Oviedo Acosta, Paula"]
[Black "Vilhete, Vania Fausto Da T."]
[Result "0-1"]
[WhiteElo "1855"]
[BlackElo "1701"]
[Annotator "NA"]
[PlyCount "94"]
[EventDate "2022.??.??"]
[TimeControl "60"]

1. e4 {[%emt 0:00:07]} c5 {[%emt 0:00:08]} 2. Nf3 {[%emt 0:00:20]} d6 {[%emt 0:
00:00]} 3. d4 {[%emt 0:00:45]} cxd4 {[%emt 0:00:06]} 4. Nxd4 {[%emt 0:00:09]}
Nf6 {[%emt 0:00:07]} 5. Nc3 {[%emt 0:00:17]} a6 {[%emt 0:00:06]} 6. Bg5 {
[%emt 0:00:46]} e6 {[%emt 0:00:13]} 7. f4 {[%emt 0:00:32]} h6 {[%emt 0:01:44]}
8. Bh4 {[%emt 0:00:48]} Be7 {[%emt 0:00:48]} 9. Qf3 {[%emt 0:01:26]} Qc7 {
[%emt 0:02:47]} 10. Bf2 {[%emt 0:01:57]} Nbd7 {[%emt 0:01:07]} 11. g4 {[%emt 0:
00:00]} b5 {[%emt 0:05:22]} 12. Rg1 {[%emt 0:02:45]} b4 {[%emt 0:07:33]} 13.
Nd1 {[%emt 0:05:57]} Bb7 {[%emt 0:02:49]} 14. Bd3 {[%emt 0:04:34]} Nc5 {
[%emt 0:01:25]} 15. Qe2 {[%emt 0:02:12]} Nfxe4 {[%emt 0:03:58]} 16. Ne3 {
[%emt 0:04:02]} Bf6 {[%emt 0:03:13]} 17. Nf1 {[%emt 0:10:28]} Nxf2 {[%emt 0:00:
00]} 18. Qxf2 {[%emt 0:02:38]} Nxd3+ {[%emt 0:01:38]} 19. cxd3 {[%emt 0:00:33]}
Qc5 {[%emt 0:01:24]} 20. Nb3 {[%emt 0:01:19]} Qxf2+ {[%emt 0:01:07]} 21. Kxf2 {
[%emt 0:01:44]} Bxb2 {[%emt 0:00:08]} 22. Rb1 {[%emt 0:00:16]} Bc3 {[%emt 0:00:
00]} 23. Ne3 {[%emt 0:02:41]} Ke7 {[%emt 0:08:49]} 24. Rgc1 {[%emt 0:03:36]} a5
{[%emt 0:12:35]} 25. Rc2 {[%emt 0:07:38]} Ba6 {[%emt 0:12:03]} 26. Ke2 {
[%emt 0:01:21]} a4 {[%emt 0:01:12]} 27. Nc1 {[%emt 0:00:26]} Rhc8 {[%emt 0:00:
00]} 28. Kf3 {[%emt 0:06:55]} Rab8 {[%emt 0:03:25]} 29. Re2 {[%emt 0:06:30]}
Kd7 {[%emt 0:02:18]} 30. Nd1 {[%emt 0:02:05]} d5 {[%emt 0:10:40]} 31. h4 {
[%emt 0:01:49]} d4 {[%emt 0:00:00]} 32. Nf2 {[%emt 0:08:21]} Bb7+ {[%emt 0:00:
00]} 33. Kg3 {[%emt 0:00:08]} Bd5 {[%emt 0:00:33]} 34. Ne4 {[%emt 0:01:57]} b3
{[%emt 0:01:52]} 35. axb3 {[%emt 0:00:43]} axb3 {[%emt 0:00:21]} 36. Nxb3 {
[%emt 0:09:09]} Rxb3 {[%emt 0:01:24]} 37. Rxb3 {[%emt 0:00:10]} Bxb3 {[%emt 0:
00:00]} 38. f5 {[%emt 0:00:05]} Bd5 {[%emt 0:02:13]} 39. fxe6+ {[%emt 0:00:08]}
fxe6 {[%emt 0:00:19]} 40. Nf2 {[%emt 0:00:39]} Bb4 {[%emt 0:00:33]} 41. g5 {
[%emt 0:30:21]} hxg5 {[%emt 0:30:48]} 42. hxg5 {[%emt 0:00:08]} Rf8 {[%emt 0:
00:00]} 43. Ng4 {[%emt 0:00:33]} Bd6+ {[%emt 0:00:18]} 44. Ne5+ {[%emt 0:00:56]
} Bxe5+ {[%emt 0:00:14]} 45. Rxe5 {[%emt 0:00:04]} Rf3+ {[%emt 0:00:24]} 46.
Kg4 {[%emt 0:00:05]} Rxd3 {[%emt 0:00:15]} 47. Kh5 {[%emt 0:00:05]} Re3 {
[%emt 0:01:02]} 0-1

[Event "44th Chess Olympiad Women 2022"]
[Site "Chennai"]
[Date "2022.07.31"]
[Round "3.47"]
[White "Sitoe, Cheila Andre"]
[Black "Perez, Dalila"]
[Result "0-1"]
[WhiteElo "1574"]
[BlackElo "1799"]
[Annotator "NA RC"]
[PlyCount "126"]
[EventDate "2022.??.??"]
[TimeControl "60"]

1. e4 {[%emt 0:00:03]} e6 {[%emt 0:00:08]} 2. Nf3 {[%emt 0:00:52]} d5 {[%emt 0:
00:00]} 3. Nc3 {[%emt 0:00:37]} d4 {[%emt 0:10:04]} 4. Ne2 {[%emt 0:00:43]} c5
{[%emt 0:02:03]} 5. Ng3 {[%emt 0:02:34]} Nc6 {[%emt 0:04:06]} 6. Bb5 {[%emt 0:
00:00]} Bd7 {[%emt 0:05:36]} 7. O-O {[%emt 0:00:34]} h5 {[%emt 0:12:55]} 8. Ne2
{[%emt 0:07:40]} Nf6 {[%emt 0:03:45]} 9. d3 {[%emt 0:00:34]} Be7 {[%emt 0:00:
00]} 10. Bf4 {[%emt 0:02:56]} Ng4 {[%emt 0:02:06]} 11. h3 {[%emt 0:06:25]} g5 {
[%emt 0:04:06]} 12. Bd2 {[%emt 0:00:17]} Nh6 {[%emt 0:08:47]} 13. Bxc6 {
[%emt 0:10:39]} Bxc6 {[%emt 0:00:17]} 14. Ne5 {[%emt 0:00:08]} Qc7 {[%emt 0:00:
00]} 15. Nxc6 {[%emt 0:00:36]} Qxc6 {[%emt 0:01:07]} 16. c3 {[%emt 0:00:10]}
dxc3 {[%emt 0:03:19]} 17. Bxc3 {[%emt 0:03:27]} f6 {[%emt 0:00:11]} 18. Rc1 {
[%emt 0:06:35]} O-O-O {[%emt 0:03:37]} 19. b4 {[%emt 0:23:54]} Qa6 {[%emt 0:00:
00]} 20. Qb3 {[%emt 0:02:06]} Rxd3 {[%emt 0:01:29]} 21. bxc5 {[%emt 0:00:32]}
e5 {[%emt 0:08:36]} 22. c6 {[%emt 0:05:33]} Qxc6 {[%emt 0:04:32]} 23. Qb1 {
[%emt 0:00:20]} Qa6 {[%emt 0:03:01]} 24. Bxe5+ {[%emt 0:01:32]} Kd8 {[%emt 0:
00:00]} 25. Rfd1 {[%emt 0:00:11]} Rxd1+ {[%emt 0:00:50]} 26. Rxd1+ {[%emt 0:00:
00]} Ke8 {[%emt 0:00:07]} 27. Qc2 {[%emt 0:00:45]} Kf7 {[%emt 0:02:20]} 28. Bb2
{[%emt 0:00:33]} Rd8 {[%emt 0:01:21]} 29. Qb3+ {[%emt 0:02:10]} Qe6 {[%emt 0:
00:00]} 30. Qxe6+ {[%emt 0:02:06]} Kxe6 {[%emt 0:00:03]} 31. Rxd8 {[%emt 0:00:
00]} Bxd8 {[%emt 0:00:03]} 32. f3 {[%emt 0:00:12]} Bb6+ {[%emt 0:00:24]} 33.
Kf1 {[%emt 0:00:07]} Ng8 {[%emt 0:01:55]} 34. Ng3 {[%emt 0:00:26]} h4 {[%emt 0:
00:00]} 35. Nf5 {[%emt 0:00:04]} Ne7 {[%emt 0:00:29]} 36. Nxe7 {[%emt 0:00:20]}
Kxe7 {[%emt 0:00:04]} 37. Ke2 {[%emt 0:00:07]} Ke6 {[%emt 0:00:26]} 38. Kd3 {
[%emt 0:00:09]} Bc7 {[%emt 0:00:16]} 39. Kc4 {[%emt 0:00:23]} Be5 {[%emt 0:00:
00]} 40. Bc1 {[%emt 0:00:19]} Kd6 {[%emt 0:00:35]} 41. Be3 {[%emt 0:30:09]} a6
{[%emt 0:30:27]} 42. a4 {[%emt 0:00:55]} Kc6 {[%emt 0:01:43]} 43. a5 {[%emt 0:
00:00]} Bc7 {[%emt 0:00:00]} 44. Bd4 {[%emt 0:00:00]} Bxa5 {[%emt 0:00:00]} 45.
Bxf6 {[%emt 0:00:00]} Bd2 {[%emt 0:00:00]} 46. Bd4 {[%emt 0:00:00]} b5+ {
[%emt 0:00:00]} 47. Kb3 {[%emt 0:00:00]} a5 {[%emt 0:00:00]} 48. Kc2 {[%emt 0:
00:00]} Bf4 {[%emt 0:00:00]} 49. Kb3 {[%emt 0:00:00]} a4+ {[%emt 0:00:00]} 50.
Kb4 {[%emt 0:00:00]} Bd6+ {[%emt 0:00:00]} 51. Kc3 {[%emt 0:00:00]} b4+ {
[%emt 0:00:00]} 52. Kb2 {[%emt 0:00:00]} Be7 {[%emt 0:00:00]} 53. Ka2 {[%emt 0:
00:00]} Kb5 {[%emt 0:00:00]} 54. Kb2 {[%emt 0:00:00]} Kc4 {[%emt 0:00:00]} 55.
Bg7 {[%emt 0:00:00]} a3+ {[%emt 0:00:00]} 56. Kb1 {[%emt 0:00:00]} b3 {[%emt 0:
00:00]} 57. e5 {[%emt 0:00:00]} Kd5 {[%emt 0:00:00]} 58. Kc1 {[%emt 0:00:00]}
Ke6 {[%emt 0:00:00]} 59. Bh8 {[%emt 0:00:00]} Bc5 {[%emt 0:00:00]} 60. Bf6 {
[%emt 0:00:00]} a2 {[%emt 0:00:00]} 61. Kb2 {[%emt 0:00:00]} Bd4+ {[%emt 0:00:
00]} 62. Kxb3 {[%emt 0:00:00]} a1=Q {[%emt 0:00:00]} 63. Bxg5 {[%emt 0:00:00]}
Qc3+ {[%emt 0:00:00]} 0-1

[Event "44th Chess Olympiad Women 2022"]
[Site "Chennai"]
[Date "2022.07.31"]
[Round "3.48"]
[White "Heba, Assi"]
[Black "Ofowino, Toritsemuwa"]
[Result "0-1"]
[WhiteElo "1449"]
[BlackElo "1870"]
[Annotator "NA"]
[PlyCount "90"]
[EventDate "2022.??.??"]
[TimeControl "60"]

1. d4 {[%emt 0:00:05]} d5 {[%emt 0:00:35]} 2. Nf3 {[%emt 0:00:06]} c6 {[%emt 0:
00:00]} 3. e3 {[%emt 0:00:22]} Nf6 {[%emt 0:00:19]} 4. Bd3 {[%emt 0:00:27]} Bg4
{[%emt 0:00:45]} 5. c4 {[%emt 0:02:01]} e6 {[%emt 0:00:24]} 6. Qb3 {[%emt 0:00:
00]} Qb6 {[%emt 0:05:51]} 7. Bd2 {[%emt 0:03:00]} Nbd7 {[%emt 0:01:47]} 8. Nc3
{[%emt 0:01:51]} Be7 {[%emt 0:03:10]} 9. h3 {[%emt 0:02:10]} Bh5 {[%emt 0:00:
00]} 10. Ne2 {[%emt 0:05:32]} Bg6 {[%emt 0:16:18]} 11. Bxg6 {[%emt 0:02:47]}
hxg6 {[%emt 0:00:11]} 12. c5 {[%emt 0:09:08]} Qxb3 {[%emt 0:07:30]} 13. axb3 {
[%emt 0:00:11]} Ne4 {[%emt 0:00:13]} 14. Ba5 {[%emt 0:05:39]} O-O {[%emt 0:00:
00]} 15. Bc7 {[%emt 0:02:21]} Nb8 {[%emt 0:07:25]} 16. Bh2 {[%emt 0:06:36]} Na6
{[%emt 0:00:43]} 17. Ra4 {[%emt 0:02:23]} Bd8 {[%emt 0:00:29]} 18. Nc3 {
[%emt 0:04:53]} Nxc3 {[%emt 0:06:16]} 19. bxc3 {[%emt 0:00:02]} Bc7 {[%emt 0:
00:00]} 20. Ne5 {[%emt 0:04:39]} g5 {[%emt 0:04:40]} 21. O-O {[%emt 0:02:34]}
f6 {[%emt 0:00:40]} 22. Nd3 {[%emt 0:03:01]} Bxh2+ {[%emt 0:00:09]} 23. Kxh2 {
[%emt 0:00:02]} Nc7 {[%emt 0:00:25]} 24. Rfa1 {[%emt 0:04:43]} a6 {[%emt 0:00:
00]} 25. Rb4 {[%emt 0:02:14]} Rab8 {[%emt 0:00:06]} 26. Nb2 {[%emt 0:00:36]}
Rfe8 {[%emt 0:06:02]} 27. Na4 {[%emt 0:01:50]} a5 {[%emt 0:02:43]} 28. Rb6 {
[%emt 0:02:02]} Na8 {[%emt 0:00:11]} 29. Kg1 {[%emt 0:02:11]} e5 {[%emt 0:00:
00]} 30. Kf1 {[%emt 0:02:17]} exd4 {[%emt 0:01:35]} 31. cxd4 {[%emt 0:01:33]}
f5 {[%emt 0:00:35]} 32. Ke2 {[%emt 0:03:45]} f4 {[%emt 0:00:54]} 33. Rb1 {
[%emt 0:04:32]} Re7 {[%emt 0:01:54]} 34. b4 {[%emt 0:00:52]} Nxb6 {[%emt 0:00:
00]} 35. Nxb6 {[%emt 0:00:19]} fxe3 {[%emt 0:00:10]} 36. fxe3 {[%emt 0:00:20]}
Rbe8 {[%emt 0:00:32]} 37. Rb3 {[%emt 0:01:38]} axb4 {[%emt 0:00:11]} 38. Na4 {
[%emt 0:01:13]} Kf7 {[%emt 0:00:32]} 39. Nb2 {[%emt 0:01:40]} Ra8 {[%emt 0:00:
00]} 40. Rxb4 {[%emt 0:01:44]} Ra2 {[%emt 0:01:42]} 41. Kd2 {[%emt 0:30:43]}
Ke8 {[%emt 0:30:19]} 42. Rb3 {[%emt 0:04:46]} Kd8 {[%emt 0:00:18]} 43. Rc3 {
[%emt 0:00:16]} Rxb2+ {[%emt 0:00:34]} 44. Kd3 {[%emt 0:03:58]} Rxg2 {[%emt 0:
00:00]} 45. Rc1 {[%emt 0:01:05]} Rg3 {[%emt 0:00:13]} 0-1

[Event "44th Chess Olympiad Women 2022"]
[Site "Chennai"]
[Date "2022.07.31"]
[Round "3.48"]
[White "Ogbiyoyo, Perpetual Eloho"]
[Black "Eman Sawan"]
[Result "1-0"]
[WhiteElo "1886"]
[BlackElo "1847"]
[Annotator "NA"]
[PlyCount "81"]
[EventDate "2022.??.??"]
[TimeControl "60"]

1. e4 {[%emt 0:00:05]} e6 {[%emt 0:02:56]} 2. d4 {[%emt 0:00:07]} d5 {[%emt 0:
00:00]} 3. Nd2 {[%emt 0:00:57]} Nf6 {[%emt 0:00:14]} 4. e5 {[%emt 0:00:28]}
Nfd7 {[%emt 0:00:10]} 5. Bd3 {[%emt 0:00:38]} c5 {[%emt 0:00:14]} 6. c3 {
[%emt 0:00:08]} Nc6 {[%emt 0:00:12]} 7. Ne2 {[%emt 0:00:23]} Qb6 {[%emt 0:00:
00]} 8. Nf3 {[%emt 0:01:08]} cxd4 {[%emt 0:00:35]} 9. cxd4 {[%emt 0:00:42]}
Bb4+ {[%emt 0:00:11]} 10. Bd2 {[%emt 0:01:22]} Bxd2+ {[%emt 0:00:56]} 11. Qxd2
{[%emt 0:00:19]} f6 {[%emt 0:00:54]} 12. exf6 {[%emt 0:03:54]} Nxf6 {[%emt 0:
00:00]} 13. O-O {[%emt 0:00:22]} O-O {[%emt 0:00:47]} 14. Ng3 {[%emt 0:02:58]}
Bd7 {[%emt 0:01:27]} 15. Rfe1 {[%emt 0:01:52]} Rae8 {[%emt 0:01:31]} 16. a3 {
[%emt 0:01:37]} e5 {[%emt 0:02:17]} 17. dxe5 {[%emt 0:05:19]} Ng4 {[%emt 0:00:
00]} 18. Bf1 {[%emt 0:04:31]} Kh8 {[%emt 0:23:50]} 19. Nh1 {[%emt 0:23:50]}
Ncxe5 {[%emt 0:09:46]} 20. Nxe5 {[%emt 0:01:34]} Nxe5 {[%emt 0:00:25]} 21. Qxd5
{[%emt 0:06:50]} Bc6 {[%emt 0:01:41]} 22. Qd6 {[%emt 0:00:46]} Rf6 {[%emt 0:00:
00]} 23. Qb4 {[%emt 0:02:18]} Qc7 {[%emt 0:05:45]} 24. Rad1 {[%emt 0:02:47]}
Ref8 {[%emt 0:15:42]} 25. Qd4 {[%emt 0:07:37]} Ng6 {[%emt 0:06:38]} 26. Re3 {
[%emt 0:02:41]} Rf4 {[%emt 0:02:05]} 27. Qc3 {[%emt 0:01:36]} Qf7 {[%emt 0:00:
00]} 28. f3 {[%emt 0:02:22]} Nh4 {[%emt 0:01:21]} 29. Ng3 {[%emt 0:01:52]} Rxf3
{[%emt 0:06:37]} 30. gxf3 {[%emt 0:01:46]} Nxf3+ {[%emt 0:00:04]} 31. Rxf3 {
[%emt 0:00:36]} Bxf3 {[%emt 0:00:32]} 32. Rd2 {[%emt 0:00:44]} h5 {[%emt 0:00:
00]} 33. Qd4 {[%emt 0:04:46]} Qe7 {[%emt 0:01:17]} 34. h4 {[%emt 0:03:18]} Qe1
{[%emt 0:02:27]} 35. Rf2 {[%emt 0:00:40]} Qc1 {[%emt 0:02:24]} 36. Nxh5 {
[%emt 0:02:19]} Qh6 {[%emt 0:00:36]} 37. Qe5 {[%emt 0:01:41]} Kg8 {[%emt 0:00:
00]} 38. Bc4+ {[%emt 0:00:26]} Kh7 {[%emt 0:00:22]} 39. Qg5 {[%emt 0:00:56]}
Qxg5+ {[%emt 0:00:46]} 40. hxg5 {[%emt 0:00:08]} g6 {[%emt 0:00:36]} 41. Nf6+ {
[%emt 0:30:15]} 1-0

[Event "44th Chess Olympiad Women 2022"]
[Site "Chennai"]
[Date "2022.07.31"]
[Round "3.48"]
[White "Taqwa, Hamouri"]
[Black "Onoja, Iyefu Joy"]
[Result "1-0"]
[WhiteElo "1214"]
[BlackElo "1869"]
[Annotator "NA"]
[PlyCount "75"]
[EventDate "2022.??.??"]
[TimeControl "60"]

1. e4 {[%emt 0:00:09]} e6 {[%emt 0:00:13]} 2. d4 {[%emt 0:00:16]} d5 {[%emt 0:
00:00]} 3. exd5 {[%emt 0:00:16]} exd5 {[%emt 0:00:09]} 4. Nf3 {[%emt 0:00:17]}
Nf6 {[%emt 0:03:12]} 5. c4 {[%emt 0:00:32]} Be7 {[%emt 0:02:42]} 6. Bd3 {
[%emt 0:02:13]} Nc6 {[%emt 0:02:05]} 7. Be3 {[%emt 0:01:41]} Nb4 {[%emt 0:00:
00]} 8. Be2 {[%emt 0:07:12]} Bf5 {[%emt 0:00:18]} 9. Na3 {[%emt 0:00:45]} c6 {
[%emt 0:04:03]} 10. c5 {[%emt 0:03:46]} Ng4 {[%emt 0:06:02]} 11. Bf4 {[%emt 0:
00:00]} b6 {[%emt 0:05:45]} 12. h3 {[%emt 0:07:38]} Nf6 {[%emt 0:00:58]} 13.
Be3 {[%emt 0:13:44]} bxc5 {[%emt 0:01:54]} 14. dxc5 {[%emt 0:03:38]} Qa5 {
[%emt 0:00:57]} 15. O-O {[%emt 0:04:53]} Bxc5 {[%emt 0:01:46]} 16. Nd4 {
[%emt 0:01:14]} Bxd4 {[%emt 0:01:26]} 17. Qxd4 {[%emt 0:01:16]} O-O {[%emt 0:
00:00]} 18. Rac1 {[%emt 0:02:58]} Ne4 {[%emt 0:04:49]} 19. Qe5 {[%emt 0:07:21]}
Bg6 {[%emt 0:02:23]} 20. Bf3 {[%emt 0:05:02]} Nd3 {[%emt 0:00:52]} 21. Qe7 {
[%emt 0:02:35]} Rfe8 {[%emt 0:03:52]} 22. Qd7 {[%emt 0:01:54]} Nxc1 {[%emt 0:
00:00]} 23. Rxc1 {[%emt 0:00:11]} Qb4 {[%emt 0:03:12]} 24. Nc2 {[%emt 0:04:23]}
Qxb2 {[%emt 0:03:22]} 25. Bxe4 {[%emt 0:00:46]} Bxe4 {[%emt 0:00:38]} 26. Nd4 {
[%emt 0:00:31]} Rad8 {[%emt 0:06:31]} 27. Qxa7 {[%emt 0:02:48]} Ra8 {[%emt 0:
00:00]} 28. Qd7 {[%emt 0:00:17]} Qxa2 {[%emt 0:02:03]} 29. Nxc6 {[%emt 0:00:31]
} Qa3 {[%emt 0:01:21]} 30. Nd4 {[%emt 0:00:53]} Rad8 {[%emt 0:02:29]} 31. Qg4 {
[%emt 0:00:48]} Bg6 {[%emt 0:00:41]} 32. Rd1 {[%emt 0:00:39]} Re4 {[%emt 0:00:
00]} 33. Qg3 {[%emt 0:01:21]} Bh5 {[%emt 0:00:54]} 34. Rb1 {[%emt 0:02:36]}
Rde8 {[%emt 0:08:43]} 35. Nf5 {[%emt 0:01:51]} Bg6 {[%emt 0:00:42]} 36. Nd6 {
[%emt 0:01:38]} R4e6 {[%emt 0:03:22]} 37. Nxe8 {[%emt 0:01:31]} Bxb1 {[%emt 0:
00:00]} 38. Qxg7# {[%emt 0:01:03]} 1-0